Cogmind - Beta 13 @@@ ROGUE MODE // 2024.04.01 @ 11:13:00 Player: Devilhunter10 Result: Destroyed by P-60 Hacker with Backup Laser I Performance ------------- Evolutions (3) 1500 Regions Visited (6) 1200 Robots Destroyed (20) 100 Value Destroyed (742) 742 Prototype IDs (1) 20 Alien Tech Used (0) 0 Bonus (300) 300 TOTAL SCORE: 3862 Bonus ------- Aligned with FarCom 300 Cogmind --------- Core Integrity 0/700 Matter 188/300 Energy 100/100 System Corruption 5% Temperature Cool (9) Movement Core (350) Ox6 Location -7/Factory Parts ------- > --- POWER (2) -------- (None) > --- PROPULSION (3) --- (None) > --- UTILITY (4) ------ Large Storage Unit Visual Processing Unit Modified TNC > --- WEAPON (4) ------- (None) > --- INVENTORY (15) --- Improved Titanium Leg Cryofiber Web Advanced Weight Redist. System Terrain Scan Processor Improved Medium Armor Plating System Restoration Module Peak State ------------ > --- POWER ------------ Light Ion Engine Light Deuterium Engine > --- PROPULSION ------- Improved Titanium Leg Improved Titanium Leg Improved Titanium Leg > --- UTILITY ---------- Large Storage Unit Visual Processing Unit Modified TNC Improved Targeting Computer > --- WEAPON ----------- Minigun Minigun Advanced Assault Cannon Advanced Assault Cannon > --- INVENTORY -------- Improved Titanium Leg Improved Titanium Leg Cryofiber Web Advanced Weight Redist. System Terrain Scan Processor System Restoration Module Assault Rifle [Rating: 43] Favorites ----------- Power Light Ion Engine Engine Light Ion Engine Propulsion Compact Wheel Leg Improved Titanium Leg Wheel Compact Wheel Utility Modified TNC Device Shield Generator Storage Small Storage Unit Processor Modified TNC Weapon Advanced Assault Cannon Energy Gun Small Laser Ballistic Gun Minigun Ballistic Cannon Advanced Assault Cannon Build | -11 -10 -10 -10 -9 -8 -7 ------- Run | Yrd Mat Min Exi Min Mat Fac Slots Evolved 6 | . . . . . 4 2 Power 1 | . . . . . 1 . Propulsion 1 | . . . . . 1 . Utility 2 | . . . . . 1 1 Weapon 2 | . . . . . 1 1 Parts Attached 31 | 6 2 . 1 . 16 6 Power 3 | 1 . . . . 2 . Engine 3 | 1 . . . . 2 . Core . | . . . . . . . Reactor . | . . . . . . . Propulsion 7 | 2 . . . . 3 2 Treads . | . . . . . . . Leg 5 | . . . . . 3 2 Wheel 2 | 2 . . . . . . Hover . | . . . . . . . Flight . | . . . . . . . Utility 10 | 1 2 . 1 . 5 1 Device 1 | . . . . . 1 . Storage 6 | 1 2 . . . 3 . Processor 3 | . . . 1 . 1 1 Hackware . | . . . . . . . Protection . | . . . . . . . Artifact . | . . . . . . . Weapon 11 | 2 . . . . 6 3 Energy Gun 2 | 1 . . . . . 1 Energy Cannon . | . . . . . . . Ballistic Gun 4 | 1 . . . . 2 1 Ballistic Cannon 5 | . . . . . 4 1 Launcher . | . . . . . . . Special Weapon . | . . . . . . . Impact Weapon . | . . . . . . . Slashing Weapon . | . . . . . . . Piercing Weapon . | . . . . . . . Special Melee Weapon . | . . . . . . . Unidentified Prototypes 1 | . . . 1 . . . Parts Lost 16 | . . . . . 3 13 Power 3 | . . . . . 1 2 Propulsion 4 | . . . . . . 4 Utility 2 | . . . . . 1 1 Weapon 7 | . . . . . 1 6 Highest Loss Streak 7 | . . . . . 2 7 To Critical Strikes . | . . . . . . . Average Slot Usage (%) 93 | . 98 100 100 100 89 86 Engine 13 | . 14 14 14 14 16 11 Leg 9 | . . . . . 15 20 Wheel 14 | . 28 28 28 28 7 . Storage 12 | . 26 28 17 14 8 7 Processor 14 | . . . 10 14 13 21 Energy Gun 7 | . 14 14 14 14 1 . Ballistic Gun 12 | . 14 14 14 14 8 12 Ballistic Cannon 6 | . . . . . 14 11 Naked Turns . | . . . . . . . Heaviest Build 46 | 11 13 13 13 11 40 46 Greatest Support 60 | 32 32 32 32 32 60 60 Greatest Overweight (x) 7 | . . . . . 1 7 Average Overweight (x) . | . . . . . . . Largest Inventory Capacity 15 | 8 8 8 8 8 15 15 Average Capacity 10 | 7 8 8 8 8 8 15 Most Carried 8 | 5 2 4 5 7 8 8 Average Carried 5 | 1 1 1 4 6 6 7 Final Capacity 15 | 8 8 8 8 8 15 15 Final Carried 7 | 1 1 4 5 7 6 6 Class Distribution -------------------- 63% | Mutant 36% | Skirmisher Dominant Class ---------------- Mutant | -10/Materials Mutant | -10/Mines Mutant | -10/Exiles Mutant | -9/Mines Skirmisher | -8/Materials Skirmisher | -7/Factory Resources | -11 -10 -10 -10 -9 -8 -7 ----------- Run | Yrd Mat Min Exi Min Mat Fac Matter Collected 1009 | 235 . 106 . 42 489 137 Remotely . | . . . . . . . Salvage Created 624 | . . 60 . . 459 105 Parts 39 | . . 3 . . 24 12 Haulers Intercepted 1 | . . . . . 1 . Recyclers Shooed 2 | . . . . . 2 . Parts Field Recycled . | . . . . . . . Retrieved Matter . | . . . . . . . Parts Self-Destructed . | . . . . . . . Prevented . | . . . . . . . Kills | -11 -10 -10 -10 -9 -8 -7 ------- Run | Yrd Mat Min Exi Min Mat Fac Combat Hostiles Destroyed 17 | . . 1 . . 10 6 Guns 9 | . . 1 . . 4 4 Cannons 7 | . . . . . 5 2 AOE 1 | . . . . . 1 . Classes Destroyed 7 | . . 1 . . 4 2 Builder 1 | . . . . . . 1 Hauler 1 | . . . . . 1 . Watcher 1 | . . . . . 1 . Swarmer 6 | . . . . . . 6 Grunt 5 | . . 1 . . 4 . Sentry 4 | . . . . . 4 . Hunter 2 | . . . . . 2 . Best Kill Streak 5 | . . 1 . . 5 3 Combat Bots Only 4 | . . 1 . . 4 3 Max Kills in Single Turn 2 | . . 1 . . 2 1 Gunslinging . | . . . . . . . Exploded 1 | . . . . . 1 . Melee . | . . . . . . . Uniques/NPCs Destroyed . | . . . . . . . Combat | -11 -10 -10 -10 -9 -8 -7 -------- Run | Yrd Mat Min Exi Min Mat Fac Hostile Shots Fired 286 | . . 1 . . 77 208 Missed 73 | . . 1 . . 20 52 Damage Taken 2943 | . . . . . 839 2104 Core 827 | . . . . . 123 704 Absorbed by Shields 39 | . . . . . 39 . Core Remaining (%) 92 | 100 . . . 100 77 . Volleys Fired 71 | . . 4 . . 41 26 Largest 4 | . . 2 . . 3 4 Hottest 146 | . . 60 . . 144 146 Shots Fired 155 | . . 8 . . 96 51 Gun 75 | . . 8 . . 39 28 Cannon 80 | . . . . . 57 23 Launcher . | . . . . . . . Special . | . . . . . . . Kinetic 139 | . . 4 . . 92 43 Thermal 16 | . . 4 . . 4 8 Explosive . | . . . . . . . Electromagnetic . | . . . . . . . Robot Hit Streak 9 | . . 7 . . 8 9 Robot Miss Streak 5 | . . 1 . . 4 5 Penetration Max . | . . . . . . . Secondary Targets . | . . . . . . . Shots Hit Robots 88 | . . 7 . . 51 30 Core Hits 35 | . . 2 . . 19 14 Critical Kills . | . . . . . . . Critical Parts Destroyed . | . . . . . . . Critical Strikes 2 | . . . . . 1 1 Blast 2 | . . . . . 1 1 Melee Attacks . | . . . . . . . Impact . | . . . . . . . Slashing . | . . . . . . . Piercing . | . . . . . . . Sneak Attacks . | . . . . . . . Combat Hostiles . | . . . . . . . Follow-up Attacks . | . . . . . . . Damage Inflicted 2184 | . . 80 . . 1319 785 Guns 886 | . . 80 . . 422 384 Cannons 1201 | . . . . . 835 366 Explosions 62 | . . . . . 62 . Melee . | . . . . . . . Ramming 35 | . . . . . . 35 Kinetic 1855 | . . 49 . . 1223 583 Thermal 232 | . . 31 . . 34 167 Explosive . | . . . . . . . Electromagnetic 62 | . . . . . 62 . Impact . | . . . . . . . Slashing . | . . . . . . . Piercing . | . . . . . . . Highest Corruption 5 | . . . . . . 5 Average Corruption 2 | . . . . . . 2 Corruption Purged . | . . . . . . . Corruption Blocked . | . . . . . . . Effects 4 | . . . . . . 4 Matter Fused 1 | . . . . . . 1 Heat Flow Errors 2 | . . . . . . 2 Parts Rejected 1 | . . . . . . 1 Overload Shots . | . . . . . . . Overflow Damage 13 | . . . . . . 13 Projectiles 12 | . . . . . . 12 Explosions . | . . . . . . . Melee 1 | . . . . . . 1 Knockbacks 10 | . . . . . 5 5 Impact . | . . . . . . . Kinetic 7 | . . . . . 4 3 Secondary 3 | . . . . . 1 2 Self-Inflicted Damage 29 | . . . . . 29 . Shots 1 | . . . . . 1 . Rammed 5 | . . . . . . 5 Targets Rammed 24 | . . . . . . 24 Kicked 19 | . . . . . . 19 Crushed . | . . . . . . . Highest Temperature 541 | . . . . . 541 432 Average Temperature 192 | . . . . . 200 175 Received Heat Transfer 762 | . . . . . 357 405 Effects 16 | . . . . . 15 1 Shutdowns 5 | . . . . . 5 . Energy Bleed 1 | . . . . . 1 . Interference 5 | . . . . . 5 . Matter Decay 4 | . . . . . 3 1 Short Circuit 1 | . . . . . 1 . Siege Activations . | . . . . . . . Robots Corrupted . | . . . . . . . Combat Hostiles . | . . . . . . . Parts Fried . | . . . . . . . Impact Corruptions 1 | . . . . . . 1 Robots Melted . | . . . . . . . Combat Hostiles . | . . . . . . . Parts Melted 1 | . . . . . . 1 Heat Transferred 525 | . . 75 . . 75 375 Parts Sabotaged . | . . . . . . . Parts Stolen . | . . . . . . . Parts Stripped . | . . . . . . . Power Chain Reactions . | . . . . . . . Alert | -11 -10 -10 -10 -9 -8 -7 ------- Run | Yrd Mat Min Exi Min Mat Fac Peak Influence 207 | . 23 38 . 4 207 85 Initial 23 | . . 8 . . . 23 Average 31 | . 16 36 . 2 89 27 Maximum Alert Level 1 | . . . . . 1 . Low Security (%) 99 | 100 100 100 . 100 96 100 Level 1 . | . . . . . 3 . Level 2 . | . . . . . . . Level 3 . | . . . . . . . Level 4 . | . . . . . . . Level 5 . | . . . . . . . High Security . | . . . . . . . Max Security . | . . . . . . . Squads Dispatched 6 | . 1 1 . . 1 3 Investigation 2 | . . 1 . . 1 . Extermination 1 | . . . . . . 1 Reinforcement 2 | . 1 . . . . 1 Assault . | . . . . . . . Garrison 1 | . . . . . . 1 Intercept . | . . . . . . . Searches Triggered . | . . . . . . . Construction Impeded . | . . . . . . . Haulers Reinforced . | . . . . . . . Active Scanning Responses . | . . . . . . . Cargo Convoy Interrupts . | . . . . . . . Stealth | -11 -10 -10 -10 -9 -8 -7 --------- Run | Yrd Mat Min Exi Min Mat Fac Distress Signals 3 | . . . . . 3 . Communications Jammed . | . . . . . . . Distress Signals . | . . . . . . . Times Spotted 31 | . 2 3 . . 14 12 Peak Tracking Total 6 | . 2 2 . . 6 5 Tactical Retreats 2 | . . . . . . 2 Traps | -11 -10 -10 -10 -9 -8 -7 ------- Run | Yrd Mat Min Exi Min Mat Fac Traps Triggered . | . . . . . . . Indirectly . | . . . . . . . Trap Hack Attempts . | . . . . . . . Triggered . | . . . . . . . Disarmed . | . . . . . . . Reprogrammed . | . . . . . . . Reused . | . . . . . . . Traps Extracted . | . . . . . . . Installed . | . . . . . . . Triggered . | . . . . . . . Machines | -11 -10 -10 -10 -9 -8 -7 ---------- Run | Yrd Mat Min Exi Min Mat Fac Machines Disabled 2 | . . . . . 2 . Max in Single Turn 1 | . . . . . 1 . Machines Repaired . | . . . . . . . Machines Dismantled . | . . . . . . . Machines Sabotaged . | . . . . . . . Overloaded Fab Kills . | . . . . . . . Hacking | -11 -10 -10 -10 -9 -8 -7 --------- Run | Yrd Mat Min Exi Min Mat Fac Machines Accessed 10 | . 2 1 2 1 1 3 Terminals 5 | . 2 . . 1 1 1 Fabricators 1 | . . . . . . 1 Repair Stations . | . . . . . . . Recycling Units . | . . . . . . . Scanalyzers . | . . . . . . . Garrison Access 1 | . . . . . . 1 Total Hacks 24 | . 3 1 10 2 3 5 Successful 20 | . 3 1 10 2 1 3 Failed 4 | . . . . . 2 2 Catastrophic . | . . . . . . . Database Lockouts . | . . . . . . . Manual 2 | . 1 . 1 . . . Terminals 9 | . 3 . . 2 3 1 Fabricators 2 | . . . . . . 2 Repair Stations . | . . . . . . . Recycling Units . | . . . . . . . Scanalyzers . | . . . . . . . Garrison Access 2 | . . . . . . 2 Terminal Hacks 18 | . 3 1 10 2 1 1 Record 10 | . . . 10 . . . Open Door 1 | . . 1 . . . . Open DSF 1 | . . . . . . 1 Unreport Threat 1 | . . . . . 1 . Dispatch Records 2 | . 1 . . 1 . . Assault Status 1 | . 1 . . . . . Zone Layout 2 | . 1 . . 1 . . Fabricator Hacks 2 | . . . . . . 2 Network Status 1 | . . . . . . 1 Build 1 | . . . . . . 1 Repair Station Hacks . | . . . . . . . Recycling Unit Hacks . | . . . . . . . Scanalyzer . | . . . . . . . Garrison Access Hacks . | . . . . . . . Unauthorized Hacks . | . . . . . . . Terminals . | . . . . . . . Fabricators . | . . . . . . . Repair Stations . | . . . . . . . Recycling Units . | . . . . . . . Scanalyzers . | . . . . . . . Garrison Access . | . . . . . . . Data Cores Recovered . | . . . . . . . Used . | . . . . . . . Hacking Detections 3 | . 1 . . . 1 1 Full Trace Events 1 | . . . . . 1 . Feedback Events . | . . . . . . . Feedback Blocked . | . . . . . . . Robot Schematics Acquired . | . . . . . . . Robots Built . | . . . . . . . Authchips . | . . . . . . . Time . | . . . . . . . Total Robot Build Rating . | . . . . . . . Part Schematics Acquired . | . . . . . . . Parts Built 1 | . . . . . . 1 Authchips . | . . . . . . . Time 117 | . . . . . . 117 Total Part Build Rating 7 | . . . . . . 7 Parts Repaired . | . . . . . . . Time . | . . . . . . . Parts Recycled . | . . . . . . . Recycled Matter . | . . . . . . . Retrieved Matter . | . . . . . . . Retrieved Components . | . . . . . . . Parts Scanalyzed . | . . . . . . . Part Schematics Acquired . | . . . . . . . Parts Damaged . | . . . . . . . Bothacking | -11 -10 -10 -10 -9 -8 -7 ------------ Run | Yrd Mat Min Exi Min Mat Fac Used RIF Installer . | . . . . . . . Robots Hacked . | . . . . . . . Non-combat . | . . . . . . . Combat . | . . . . . . . Robot Hacks Applied . | . . . . . . . Relay Couplers Released . | . . . . . . . Fabnet Peak Effective % . | . . . . . . . Robots Rewired . | . . . . . . . Allies Hacked . | . . . . . . . Hacks Repelled . | . . . . . . . Allies | -11 -10 -10 -10 -9 -8 -7 -------- Run | Yrd Mat Min Exi Min Mat Fac Total Allies 2 | . . . . 2 . . Largest Group 2 | . . . . 2 2 . Highest-Rated Group 47 | . . . . 47 47 . Highest-Rated Ally 31 | . . . . 31 31 . Total Orders . | . . . . . . . Ally Attacks 6 | . . . . . 6 . Total Damage 83 | . . . . . 83 . Kills . | . . . . . . . Allies Corrupted . | . . . . . . . Allies Melted . | . . . . . . . Intel | -11 -10 -10 -10 -9 -8 -7 ------- Run | Yrd Mat Min Exi Min Mat Fac Robot Analysis Total . | . . . . . . . Derelict Logs Recovered 4 | . . 1 . 3 . . Drone Launches . | . . . . . . . Drone Recoveries . | . . . . . . . Exploration | -11 -10 -10 -10 -9 -8 -7 ------------- Run | Yrd Mat Min Exi Min Mat Fac Turns Passed 3565 | 283 112 227 664 598 549 1132 Spaces Moved 2692 | 97 107 210 662 580 338 698 Core 18 | 12 . . . . . 6 Treads . | . . . . . . . Legs 865 | . . . . . 173 692 Wheels 1809 | 85 107 210 662 580 165 . Hover . | . . . . . . . Flight . | . . . . . . . Fastest Speed 50 | 50 100 100 100 100 100 130 Average Speed 110 | 93 100 100 100 100 117 134 Slowest Speed 400 | 100 100 100 100 100 200 400 Overloaded Moves . | . . . . . . . Propulsion Burnouts . | . . . . . . . Robots Hopped . | . . . . . . . Cave-ins Triggered . | . . . . . . . Exploration Rate (%) 42 | 9 17 51 93 96 20 10 Regions Visited 6 Branch Regions 3 Pre-discovered Areas 1 | . . . . 1 . . Known Exits Taken . | . . . . . . . Unknown Exits Taken 6 | 1 1 1 1 1 1 . Scrap Searched 2 | . . . . 2 . . Spaces Dug . | . . . . . . . Terrain Destroyed 23 | . . . . . 18 5 Melee . | . . . . . . . Projectile 23 | . . . . . 18 5 AOE . | . . . . . . . Terrain Rammed . | . . . . . . . Walls Destroyed . | . . . . . . . Machines Disabled . | . . . . . . . Actions | -11 -10 -10 -10 -9 -8 -7 --------- Run | Yrd Mat Min Exi Min Mat Fac Total 3115 | 288 111 219 663 598 412 824 Wait 263 | 179 . 3 . 17 . 64 Move 2686 | 96 106 209 661 579 337 698 Hop . | . . . . . . . Pick Up 31 | 7 2 3 1 2 10 6 Fast Attach 6 | . . . . . 6 . Attach 18 | 6 1 . . . 5 6 Detach . | . . . . . . . Swap 7 | . 1 . 1 . 5 . Drop 9 | . 1 . . . 8 . Fire 71 | . . 4 . . 41 26 Melee . | . . . . . . . Ram 5 | . . . . . . 5 Kick 19 | . . . . . . 19 Crush . | . . . . . . . Escape Stasis . | . . . . . . . Rewire . | . . . . . . . Trap . | . . . . . . . Miscellaneous . | . . . . . . . Route ------- -11/Scrapyard -10/Materials -10/Mines (discovered 2 exits: [*Mat] / *Exi) -10/Exiles -9/Mines (discovered 2 exits: *Mat x2) -8/Materials -7/Factory History --------- Turn | Location | Event 25 | -11/Scrapyard | Discovered new exit (range 15) 284 | -11/Scrapyard | Entered Materials 312 | -10/Materials | Build established: Mutant 328 | -10/Materials | Discovered new exit (range 16) 354 | -10/Materials | Met 8R-AWN 396 | -10/Materials | Entered Mines 397 | -10/Mines | Followed 8R-AWN into the Mines 524 | -10/Mines | Learned Materials trap positions 530 | -10/Mines | Discovered new exit (range 10) 542 | -10/Mines | Discovered new exit (range 5) 567 | -10/Mines | Met a Derelict shopkeep closing up shop 623 | -10/Mines | Entered Exiles 658 | -10/Exiles | Welcomed by 8R-AWN 689 | -10/Exiles | Met EX-HEX 730 | -10/Exiles | Met EX-BIN 747 | -10/Exiles | Aligned with FarCom system 748 | -10/Exiles | Given EX-Vault access code 792 | -10/Exiles | Opened EX-Vault 800 | -10/Exiles | Found Prototype Processor 801 | -10/Exiles | Identified Modified TNC 826 | -10/Exiles | Warned to stay clear of 0b10 Research branches 919 | -10/Exiles | Met EX-DEC 1016 | -10/Exiles | Discovered new exit (range 14) 1093 | -10/Exiles | Visited The Gauntlet 1287 | -10/Exiles | Left Exiles lab with Modified TNC 1287 | -10/Exiles | Entered Mines 1295 | -9/Mines | Learned Materials emergency access door positions 1370 | -9/Mines | Learned location of Zion (-7) 1484 | -9/Mines | Discovered new exit (range 9) 1728 | -9/Mines | Learned Materials garrison access intel 1729 | -9/Mines | Discovered new exit (range 4) 1885 | -9/Mines | Entered Materials 1885 | -8/Materials | Accompanied by 2 allies 1885 | -8/Materials | Evolved 4 slots: Power x1, Propulsion x1, Utility x1, Weapon x1 1886 | -8/Materials | Loaded intel: 15 trap records 1888 | -8/Materials | Loaded intel: 1 garrison access location 1890 | -8/Materials | Led the pair of lost Derelicts to an unsafe place 2371 | -8/Materials | Discovered new exit (range 16) 2413 | -8/Materials | Build established: Skirmisher 2434 | -8/Materials | Entered Factory 2434 | -7/Factory | Evolved 2 slots: Utility x1, Weapon x1 3361 | -7/Factory | Lost 7 parts (2p1n4w) 3364 | -7/Factory | Fabricated Force Lance? 3500 | -7/Factory | Lost 3 parts (2n1w) 3511 | -7/Factory | Garrison activated, responded to threat 3519 | -7/Factory | Core integrity fell below 50% 3543 | -7/Factory | Core integrity fell below 20% 3566 | -7/Factory | Destroyed by P-60 Hacker with Backup Laser I Last Messages --------------- Gatling Laser destroyed. R-06 Scavenger collects VTOL Module. System corrupted: Heat flow error (+112). R-06 Scavenger collects Lgt. Nuclear Core. R-06 Scavenger collects VTOL Module. R-06 Scavenger collects Autogun. Acquired 16 matter. Acquired 20 matter. Slammed into S-27 Virus. Imp. Targeting Computer broken. Destabilizing: Short circuit. P-60 Hacker misfires. Slammed into S-27 Virus. Modified TNC broken. Destabilizing: Short circuit. Broken Imp. Targeting Computer destroyed. P-60 Hacker misfires. Slammed into S-27 Virus. Destabilizing: System corrupted (+2). Slammed into S-27 Virus. Map ----- +----------------------------------------------------+ | ?????????????????????????????????????????????????? | | ?????????????????????????????????????????????????? | | ?????????????????????????????????????????????????? | | ?????????????????????????????????????????????????? | | ?????????????????????????????????????????????????? | | ?????????????????????????????????????????????????? | | ?????????????????????????????????????????????????? | | ?????????????????????????????????????????????????? | | ????????????????????????????????##########???????? | | ????????????????????????????????# #???????? | | ????????????????????????????????# """""" #???????? | | ????????????????????????????????# """""" #???????? | | ???????????????????????????###### """""" #???????? | | ???????????????????????????? # """""" #???????? | | ???????????????????????????? # #???????? | | ????????????????????????????? # #???????? | | ?????????????????????????????? # #???????? | | ??????????????????????????????# # #???????? | | ????????????????????????Y?????# ##+##/####???????? | | ??????????????????????????????# #??????????? | | ????????????????????????#######r## #??????????? | | ????????????????????????#[ # #??????????? | | ????????????????Y???????# """ # #??????????? | | ????????????????????????# "G" # #??????????? | | ????????????????????????#s " " # #####??????? | | ????????????????????????#@p + | | ????????????????????????# ! """ #+######## | | ????????????????????????# """ # #?? | | ????????????????????????# """ # #?# | | ????????????????????????# % # #?# | | ????????????????????????########## #?# | | ?????????????????????????????????# #?# ? | | ?????????????????????????????????# #?# ? | | ?????????????????????????????????###/####?# #? | | ???????????????????????????????????# #????# #? | | ???????????????????????????????????# #????# #? | | ???????????????????????????????????# #????# ## | | ?????????????????????????????#######+###### # | | ?????????????????????????????# """" # #[ | | ?????????????????????????????# "F " "" # # | | ?????????????????????????????# "" # # | | ?????????????????????????????# """ # # | | ?????????????????????????????# """ # # | | ?????????????????????????????# """ + + | | ?????????????????????????????# # # | | ?????????????????????????????# # # | | ?????????????????????????????# # # | | ?????????????????????????????# # # | | ?????????????????????????????# # # | | ?????????????????????????????# ! # ## | +----------------------------------------------------+ Best States ------------- Heat Dissipation 34 Energy Generation 19 Energy Capacity 165 Matter Stores 349 Matter Capacity 400 Sight Range 18 Terrain Scan Density 10 Evasion (%) 55 Targeting Accuracy 6 Item Schematics ----------------- None Robot Schematics ------------------ None Fabricated ------------ Force Lance | x1 | -7/Factory | Preloaded Alien Tech Used ----------------- None Achievements -------------- Just What I Needed Loot Pinata Tourist Troublemaker Challenges ------------ None Game ------ Seed HugeHardcellShifter Manual? 0 Play Time 00:40:47 Cumulative 2.3 hours Start 2024.04.01 @ 10:29:54 End 2024.04.01 @ 11:13:00 Sessions 1 Manual Loads 0 Difficulty Rogue Special Mode None Game No. 4 Rogue 4 Adventurer 0 Explorer 0 Win Type - Total 0 Types 0/0/0/0/0/0/0/0/0 Lore% 5 Gallery% 6 Achievement% 7 Wizard Run 0 Options --------- Layout 1 ASCII 0 Keyboard 0 Movement Arrows Keybinds 0 Fullscreen 1 Font 24/Smallcaps Map View 50x35 Zoom Use 0% Tactical HUD 0 Map Filters NONE Filters NONE Steam 1 RUN: 9846dc8c-8d5d-41f6-be95-d65ad7746771